fUSD/lending_fUSD_20241004
["ID","MTS","AMOUNT","RATE_DAILY","PERIOD"]
[339838741,1728052352432,-500.0,0.00040547,120]
[339838742,1728052352441,-500.0,0.00040547,120]
[339838743,1728052352452,-502.27150838,0.00040547,120]
[339838744,1728052352462,-4369.58,0.00040547,120]
[339838745,1728052352471,-500.0,0.00040547,120]
[339838746,1728052352482,-1234.77,0.00040547,120]
[339838747,1728052352493,-500.0,0.00040547,120]
[339838748,1728052352502,-7513.51,0.00040547,120]
[339838749,1728052352512,-1456.1,0.00040547,120]
[339838750,1728052352522,-950.52,0.00040547,120]
[339838751,1728052352532,-1323.19,0.00040547,120]
[339838752,1728052352544,-1491.4,0.00040547,120]
[339838753,1728052352553,-511.9,0.00040547,120]
[339838754,1728052352563,-500.0,0.00040547,120]
[339838755,1728052352573,-500.0,0.00040547,120]
[339838756,1728052352584,-500.0,0.00040547,120]
[339838757,1728052352594,-1484.53,0.00040547,120]
[339838758,1728052352604,-939.24,0.00040547,120]
[339838759,1728052352615,-2473.72,0.00040547,120]
[339838760,1728052352624,-339.98373177,0.00040547,120]
[339838761,1728052352633,-500.0,0.00040547,120]
[339838762,1728052352643,-578.69,0.00040547,120]
[339838763,1728052352652,-576.71,0.00040547,120]
[339838764,1728052352662,-782.01,0.00040547,120]
[339838765,1728052352672,-500.0,0.00040547,120]
[339838766,1728052352682,-500.0,0.00040547,120]
[339838767,1728052352691,-500.0,0.00040547,120]
[339838768,1728052352701,-500.0,0.00040547,120]
[339838769,1728052352710,-3591.16,0.00040547,120]
[339838770,1728052352719,-500.0,0.00040547,120]
[339838771,1728052352729,-500.0,0.00040547,120]
[339838772,1728052352739,-500.0,0.00040547,120]
[339838773,1728052352748,-3218.69,0.00040547,120]
[339838774,1728052352758,-500.0,0.00040547,120]
[339838775,1728052352767,-500.0,0.00040547,120]
[339838776,1728052352777,-970.53,0.00040547,120]
[339838777,1728052352787,-964.0,0.00040547,120]
[339838778,1728052352797,-623.3,0.00040547,120]
[339838779,1728052352806,-1335.89,0.00040547,120]
[339838780,1728052352816,-770.71,0.00040547,120]
[339838781,1728052352825,-500.0,0.00040547,120]
[339838782,1728052352834,-1460.22,0.00040547,120]
[339838783,1728052352844,-1654.84,0.00040547,120]
[339838784,1728052352853,-4976.51,0.00040547,120]
[339838785,1728052352863,-250.78,0.00040547,120]
[339838786,1728052352873,-500.0,0.00040547,120]
[339838787,1728052352882,-932.62,0.00040547,120]
[339838788,1728052352892,-733.59,0.00040547,120]
[339838789,1728052352902,-500.0,0.00040547,120]
[339838790,1728052352911,-500.0,0.00040547,120]
[339838791,1728052352920,-500.0,0.00040547,120]
[339838792,1728052352929,-1867.11,0.00040547,120]
[339838793,1728052352938,-11036.81,0.00040547,120]
[339838794,1728052352949,-2395.29,0.00040547,120]
[339838795,1728052352958,-500.0,0.00040547,120]
[339838796,1728052352968,-538.86,0.00040547,120]
[339838797,1728052353179,-1321.64,0.00040547,120]
[339838798,1728052353190,-500.0,0.00040547,120]
[339838799,1728052353199,-500.0,0.00040547,120]
[339838800,1728052353209,-1311.12,0.00040547,120]
[339838801,1728052353218,-500.0,0.00040547,120]
[339838802,1728052353228,-500.0,0.00040547,120]
[339838803,1728052353237,-686.82,0.00040547,120]
[339838804,1728052353247,-1288.59,0.00040547,120]
[339838805,1728052353257,-500.0,0.00040547,120]
[339838806,1728052353266,-207.6067769,0.00040547,120]
[339838807,1728052353275,-1800.34,0.00040547,120]
[339838808,1728052353285,-500.0,0.00040547,120]
[339838809,1728052353296,-845.07,0.00040547,120]
[339838810,1728052353309,-500.0,0.00040547,120]
[339838811,1728052353319,-500.0,0.00040547,120]
[339838812,1728052353328,-1469.35,0.00040547,120]
[339838813,1728052353338,-1052.81,0.00040547,120]
[339838814,1728052353347,-1253.47,0.00040547,120]
[339838815,1728052353356,-6995.81,0.00040547,120]
[339838816,1728052353366,-500.0,0.00040547,120]
[339838817,1728052353376,-500.0,0.00040547,120]
[339838818,1728052353386,-507.47,0.00040547,120]
[339838819,1728052353397,-500.0,0.00040547,120]
[339838820,1728052353407,-500.0,0.00040547,120]
[339838821,1728052353417,-500.0,0.00040547,120]
[339838822,1728052353426,-253.87214913,0.00040547,120]
[339838823,1728052353436,-2611.3,0.00040547,120]
[339838824,1728052353446,-500.0,0.00040547,120]
[339838825,1728052353455,-604.27,0.00040547,120]
[339838826,1728052353465,-2230.01,0.00040547,120]
[339838827,1728052353475,-500.0,0.00040547,120]
[339838828,1728052353485,-500.0,0.00040547,120]
[339838829,1728052353494,-646.77,0.00040547,120]
[339838830,1728052353504,-500.0,0.00040547,120]
[339838831,1728052353513,-500.0,0.00040547,120]
[339838832,1728052353522,-500.0,0.00040547,120]
[339838833,1728052353531,-500.0,0.00040547,120]
[339838834,1728052353545,-500.0,0.00040547,120]
[339838835,1728052353556,-514.91,0.00040547,120]
[339838836,1728052353565,-500.0,0.00040547,120]
[339838837,1728052353575,-1404.49,0.00040547,120]
[339838838,1728052353585,-500.0,0.00040547,120]
[339838839,1728052353595,-500.0,0.00040547,120]
[339838840,1728052353604,-500.0,0.00040547,120]
[339838841,1728052353614,-606.88,0.00040547,120]
[339838842,1728052353624,-500.0,0.00040547,120]
[339838843,1728052353633,-500.0,0.00040547,120]
[339838844,1728052353644,-1190.32,0.00040547,120]
[339838845,1728052353654,-1530.35,0.00040547,120]
[339838846,1728052353663,-500.0,0.00040547,120]
[339838847,1728052353673,-500.0,0.00040547,120]
[339838848,1728052353684,-1303.53,0.00040547,120]
[339838849,1728052353694,-500.0,0.00040547,120]
[339838850,1728052353704,-765.62,0.00040547,120]
[339838851,1728052353714,-625.05,0.00040547,120]
[339838852,1728052353724,-500.0,0.00040547,7]
[339838853,1728052353734,-1163.76,0.00040547,120]
[339838854,1728052353744,-500.0,0.00040547,120]
[339838855,1728052353754,-2290.51,0.00040547,120]
[339838856,1728052353764,-500.0,0.00040547,120]
[339838857,1728052353775,-649.86,0.00040547,120]
[339838858,1728052353785,-716.37,0.00040547,120]
[339838859,1728052353801,-500.0,0.00040547,120]
[339838860,1728052353810,-500.0,0.00040547,120]
[339838861,1728052353820,-295.83194509,0.00040547,120]
[339838862,1728052353830,-3503.34,0.00040547,120]
[339838863,1728052353840,-500.0,0.00040547,120]
[339838864,1728052353850,-500.0,0.00040547,120]
[339838865,1728052353860,-5035.5,0.00040547,120]
[339838866,1728052353871,-1925.44,0.00040547,120]
[339838867,1728052353880,-7070.31,0.00040547,120]
[339838868,1728052353890,-500.0,0.00040547,120]
[339838869,1728052353901,-1047.78,0.00040547,120]
[339838870,1728052353911,-500.0,0.00040547,120]
[339838871,1728052353922,-658.7,0.00040547,120]
[339838872,1728052353932,-500.0,0.00040547,120]
[339838873,1728052353941,-4318.76,0.00040547,120]
[339838874,1728052353951,-1963.01,0.00040547,120]
[339838875,1728052353961,-1732.87,0.00040547,120]
[339838876,1728052353970,-500.0,0.00040547,120]
[339838877,1728052353979,-500.0,0.00040547,120]
[339838878,1728052353989,-500.0,0.00040547,120]
[339838879,1728052353998,-500.0,0.00040547,120]
[339838880,1728052354008,-500.0,0.00040547,120]
[339838881,1728052354017,-820.76,0.00040547,120]
[339838882,1728052354027,-500.0,0.00040547,120]
[339838883,1728052354039,-2184.74,0.00040547,120]
[339838884,1728052354049,-504.25897048,0.00040547,120]
[339838885,1728052354059,-3611.87,0.00040547,120]
[339838886,1728052354068,-825.07,0.00040547,120]
[339838887,1728052354078,-1967.11,0.00040547,120]
[339838888,1728052354088,-1805.1,0.00040547,120]
[339838889,1728052354097,-3035.24,0.00040547,120]
[339838890,1728052354106,-511.74,0.00040547,120]
[339838891,1728052354116,-500.0,0.00040547,120]
[339838892,1728052354125,-500.0,0.00040547,120]
[339838893,1728052354135,-560.83,0.00040547,120]
[339838894,1728052354144,-1582.94,0.00040547,120]
[339838895,1728052354153,-1065.36,0.00040547,120]
[339838896,1728052354163,-5880.09,0.00040547,120]
[339838897,1728052354172,-226.35364936,0.00040547,120]
[339838898,1728052354182,-1564.74,0.00040547,120]
[339838899,1728052354192,-500.0,0.00040547,120]
[339838900,1728052354201,-4434.66,0.00040547,120]
[339838901,1728052354211,-840.82,0.00040547,120]
[339838902,1728052354220,-778.93,0.00040547,120]
[339838903,1728052354229,-1115.42,0.00040547,120]
[339838904,1728052354239,-305.35541642,0.00040547,120]
[339838905,1728052354248,-1167.3,0.00040547,120]
[339838906,1728052354258,-641.17,0.00040547,120]
[339838907,1728052354267,-1034.46,0.00040547,120]
[339838908,1728052354277,-640.61,0.00040547,120]
[339838909,1728052354286,-541.94,0.00040547,120]
[339838910,1728052354300,-500.0,0.00040547,120]
[339838911,1728052354310,-500.0,0.00040547,120]
[339838912,1728052354320,-973.61,0.00040547,120]
[339838913,1728052354330,-1034.57,0.00040547,120]
[339838914,1728052354340,-374.35445404,0.00040547,120]
[339838915,1728052354350,-500.0,0.00040547,120]
[339838916,1728052354359,-498.29891269,0.00040547,2]
[339838917,1728052354369,-500.0,0.00040547,120]
[339838918,1728052354381,-9952.7,0.00040547,120]
[339838919,1728052354391,-2401.59,0.00040547,120]
[339838920,1728052354400,-500.0,0.00040547,120]
[339838921,1728052354410,-500.0,0.00040547,120]
[339838922,1728052354419,-503.06,0.00040547,120]
[339838923,1728052354429,-665.23,0.00040547,120]
[339838924,1728052354438,-1417.36,0.00040547,120]
[339838925,1728052354448,-500.0,0.00040547,120]
[339838926,1728052354457,-647.58001615,0.00040547,120]
[339838927,1728052354468,-1278.94,0.00040547,120]
[339838928,1728052354477,-666.8,0.00040547,120]
[339838929,1728052354487,-500.0,0.00040547,120]
[339838930,1728052354496,-5537.59,0.00040547,120]
[339838931,1728052354505,-1288.99,0.00040547,120]
[339838932,1728052354514,-694.07,0.00040547,120]
[339838933,1728052354524,-1883.94,0.00040547,120]
[339838934,1728052354534,-935.01,0.00040547,120]
[339838935,1728052354549,-1656.57,0.00040547,120]
[339838936,1728052354558,-755.83,0.00040547,120]
[339838937,1728052354568,-500.0,0.00040547,120]
[339838938,1728052354577,-823.41,0.00040547,120]
[339838939,1728052354587,-208.42849524,0.00040567,120]
[339838940,1728052354596,-201.0,0.0004059,30]
[339838941,1728052354606,-1638.25814047,0.00040596,30]
[339838942,1728052354616,-2206.77672807,0.00040596,30]
[339838943,1728052354626,-2575.56839506,0.00040596,30]
[339838944,1728052354635,-500.0,0.0004063,7]
[339838945,1728052354644,-208.42849524,0.00040678,120]
[339838946,1728052354654,-208.42849524,0.00040789,120]
[339838947,1728052354663,-233.100417,0.00040798,120]
[339838948,1728052354672,-155.48182,0.00040821,120]
[339838949,1728052354682,-150.159144,0.00040821,120]
[339838950,1728052354691,-500.0,0.00040821,120]
[339838951,1728052354700,-500.0,0.00040821,120]
[339838952,1728052354710,-500.0,0.00040821,120]
[339838953,1728052354719,-500.0,0.00040821,120]
[339838954,1728052354729,-500.0,0.00040821,120]
[339838955,1728052354738,-500.0,0.00040821,120]
[339838956,1728052354747,-500.0,0.00040821,120]
[339838957,1728052354756,-500.0,0.00040821,120]
[339838958,1728052354765,-500.0,0.00040821,120]
[339838959,1728052354774,-1279.35,0.00040821,120]
[339838960,1728052354784,-223.50478683,0.00040821,120]
[339838961,1728052354797,-686.46,0.00040821,120]
[339838962,1728052354806,-500.0,0.00040821,120]
[339838963,1728052354815,-500.0,0.00040821,120]
[339838964,1728052354825,-500.0,0.00040821,120]
[339838965,1728052354835,-523.99,0.00040821,120]
[339838966,1728052354844,-500.0,0.00040821,120]
[339838967,1728052354854,-694.3,0.00040821,120]
[339838968,1728052354863,-511.92,0.00040821,120]
[339838969,1728052354872,-500.0,0.00040821,120]
[339838970,1728052354882,-500.0,0.00040821,120]
[339838971,1728052354892,-500.0,0.00040821,120]
[339838972,1728052354901,-500.0,0.00040821,120]
[339838973,1728052354910,-500.0,0.00040821,120]
[339838974,1728052354920,-500.0,0.00040821,120]
[339838975,1728052354929,-571.19,0.00040821,7]
[339838976,1728052354939,-500.0,0.00040821,120]
[339838977,1728052354948,-500.84800219,0.00040821,120]
[339838978,1728052354959,-500.0,0.00040821,120]
[339838979,1728052354968,-500.0,0.00040821,120]
[339838980,1728052354977,-500.0,0.00040821,120]
[339838981,1728052354986,-500.0,0.00040821,120]
[339838982,1728052354996,-626.02,0.00040821,120]
[339838983,1728052355007,-500.0,0.00040821,120]
[339838984,1728052355017,-758.01,0.00040821,120]
[339838985,1728052355026,-500.0,0.00040821,120]
[339838986,1728052355037,-500.0,0.00040821,120]
[339838987,1728052355051,-2079.16,0.00040821,120]
[339838988,1728052355060,-500.0,0.00040821,120]
[339838989,1728052355069,-555.19,0.00040821,120]
[339838990,1728052355078,-571.51,0.00040821,120]
[339838991,1728052355087,-500.0,0.00040821,120]
[339838992,1728052355097,-500.0,0.00040821,120]
[339838993,1728052355105,-500.0,0.00040821,120]
[339838994,1728052355115,-500.0,0.00040821,120]
[339838995,1728052355126,-612.16,0.00040821,120]
[339838996,1728052355135,-1560.63,0.00040821,120]
[339838997,1728052355145,-500.0,0.00040821,120]
[339838998,1728052355155,-500.0,0.00040821,120]
[339838999,1728052355164,-883.27,0.00040821,120]
[339839000,1728052355174,-503.88750057,0.00040821,120]
[339839001,1728052355185,-586.05,0.00040821,120]
[339839002,1728052355194,-600.58066641,0.00040821,120]
[339839003,1728052355203,-329.35,0.00040821,120]
[339839004,1728052355214,-500.0,0.00040821,120]
[339839005,1728052355224,-623.92,0.00040821,120]
[339839006,1728052355233,-500.0,0.00040821,120]
[339839007,1728052355242,-790.33,0.00040821,120]
[339839008,1728052355251,-500.0,0.00040821,120]
[339839009,1728052355261,-533.77,0.00040821,120]
[339839010,1728052355271,-500.0,0.00040821,120]
[339839011,1728052355281,-500.0,0.00040821,120]
[339839012,1728052355292,-500.0,0.00040821,120]
[339839013,1728052355303,-500.0,0.00040821,120]
[339839014,1728052355312,-741.16,0.00040821,120]
[339839015,1728052355320,-500.0,0.00040821,120]
[339839016,1728052355330,-277.7119929,0.00040821,120]
[339839017,1728052355339,-187.19906747,0.00040821,120]
[339839018,1728052355349,-500.0,0.00040821,120]
[339839019,1728052355358,-211.88030764,0.00040821,120]
[339839020,1728052355367,-500.0,0.00040821,120]
[339839021,1728052355377,-805.8,0.00040821,120]
[339839022,1728052355386,-705.12,0.00040821,120]
[339839023,1728052355396,-500.0,0.00040821,120]
[339839024,1728052355405,-500.0,0.00040821,120]
[339839025,1728052355415,-496.16321922,0.00040821,120]
[339839026,1728052355424,-500.0,0.00040821,120]
[339839027,1728052355433,-680.56,0.00040821,120]
[339839028,1728052355442,-620.12,0.00040821,120]
[339839029,1728052355451,-638.4855911,0.00040821,120]
[339839030,1728052355459,-500.0,0.00040821,120]
[339839031,1728052355468,-745.23,0.00040821,120]
[339839032,1728052355477,-500.0,0.00040821,120]
[339839033,1728052355486,-606.93334675,0.00040821,120]
[339839034,1728052355495,-500.0,0.00040821,120]
[339839035,1728052355505,-648.92,0.00040821,120]
[339839036,1728052355514,-500.0,0.00040821,120]
[339839037,1728052355524,-650.29,0.00040821,120]
[339839038,1728052355533,-356.25722752,0.00040821,120]
[339839039,1728052355547,-500.0,0.00040821,120]
[339839040,1728052355556,-500.0,0.00040821,120]
[339839041,1728052355566,-500.0,0.00040821,120]
[339839042,1728052355574,-500.0,0.00040821,120]
[339839043,1728052355583,-500.0,0.00040821,120]
[339839044,1728052355593,-500.0,0.00040821,120]
[339839045,1728052355601,-500.0,0.00040821,120]
[339839046,1728052355611,-500.0,0.00040821,120]
[339839047,1728052355620,-1059.57,0.00040821,120]
[339839048,1728052355629,-500.0,0.00040821,120]
[339839049,1728052355638,-500.0,0.00040821,120]
[339839050,1728052355647,-347.17613204,0.00040821,120]
[339839051,1728052355656,-500.0,0.00040821,120]
[339839052,1728052355666,-364.63183914,0.00040821,120]
[339839053,1728052355675,-500.0,0.00040821,120]
[339839054,1728052355684,-1103.96,0.00040821,120]
[339839055,1728052355694,-500.0,0.00040821,120]
[339839056,1728052355703,-649.65,0.00040821,120]
[339839057,1728052355712,-500.0,0.00040821,120]
[339839058,1728052355721,-500.0,0.00040821,120]
[339839059,1728052355730,-500.0,0.00040821,120]
[339839060,1728052355740,-500.0,0.00040821,120]
[339839061,1728052355749,-367.85135407,0.00040821,120]
[339839062,1728052355758,-500.0,0.00040821,120]
[339839063,1728052355768,-637.67,0.00040821,120]
[339839064,1728052355777,-500.0,0.00040821,120]
[339839065,1728052355786,-200.0,0.00040821,7]
[339839066,1728052355802,-221.6612492,0.00040821,120]
[339839067,1728052355812,-339.80772674,0.00040821,120]
[339839068,1728052355821,-500.0,0.00040821,120]
[339839069,1728052355830,-500.0,0.00040821,120]
[339839070,1728052355839,-500.0,0.00040821,120]
[339839071,1728052355850,-500.0,0.00040821,120]
[339839072,1728052355860,-1085.42,0.00040821,120]
[339839073,1728052355869,-500.0,0.00040821,120]
[339839074,1728052355878,-500.0,0.00040821,120]
[339839075,1728052355887,-350.11964148,0.00040821,120]
[339839076,1728052355896,-500.0,0.00040821,120]
[339839077,1728052355905,-500.0,0.00040821,120]
[339839078,1728052355914,-743.04,0.00040821,120]
[339839079,1728052355923,-500.0,0.00040821,120]
[339839080,1728052355932,-500.0,0.00040821,120]
[339839081,1728052355942,-500.0,0.00040821,120]
[339839082,1728052355951,-311.77467858,0.00040821,120]
[339839083,1728052355960,-500.0,0.00040821,120]
[339839084,1728052355970,-880.08,0.00040821,120]
[339839085,1728052355979,-500.0,0.00040821,120]
[339839086,1728052355988,-511.66,0.00040821,120]
[339839087,1728052355997,-525.38,0.00040821,120]
[339839088,1728052356007,-500.0,0.00040821,120]
[339839089,1728052356016,-500.0,0.00040821,120]
[339839090,1728052356026,-500.0,0.00040821,120]
[339839091,1728052356036,-305.28504458,0.00040821,120]
[339839092,1728052356052,-578.74,0.00040821,120]
[339839093,1728052356062,-888.8,0.00040821,120]
[339839094,1728052356071,-500.0,0.00040821,120]
[339839095,1728052356080,-500.0,0.00040821,120]
[339839096,1728052356090,-782.81,0.00040821,120]
[339839097,1728052356099,-505.29857384,0.00040821,120]
[339839098,1728052356108,-627.53,0.00040821,120]
[339839099,1728052356118,-500.0,0.00040821,120]
[339839100,1728052356127,-942.19,0.00040821,120]
[339839101,1728052356136,-612.72,0.00040821,120]
[339839102,1728052356145,-500.0,0.00040821,120]
[339839103,1728052356154,-500.0,0.00040821,120]
[339839104,1728052356163,-500.0,0.00040821,120]
[339839105,1728052356172,-553.18,0.00040821,120]
[339839106,1728052356182,-500.0,0.00040821,120]
[339839107,1728052356191,-898.91,0.00040821,120]
[339839108,1728052356200,-1053.16,0.00040821,120]
[339839109,1728052356210,-574.04,0.00040821,120]
[339839110,1728052356219,-500.0,0.00040821,120]
[339839111,1728052356228,-810.52,0.00040821,120]
[339839112,1728052356237,-806.27,0.00040821,120]
[339839113,1728052356246,-500.0,0.00040821,120]
[339839114,1728052356255,-643.39,0.00040821,24]
[339839115,1728052356264,-284.64141118,0.00040821,120]
[339839116,1728052356273,-500.0,0.00040821,120]
[339839117,1728052356282,-304.05021299,0.00040821,120]
[339839118,1728052356295,-500.0,0.00040821,120]
[339839119,1728052356307,-500.0,0.00040821,120]
[339839120,1728052356316,-500.0,0.00040821,120]
[339839121,1728052356325,-519.64,0.00040821,120]
[339839122,1728052356334,-500.0,0.00040821,120]
[339839123,1728052356343,-500.0,0.00040821,120]
[339839124,1728052356352,-500.0,0.00040821,120]
[339839125,1728052356361,-500.0,0.00040821,120]
[339839126,1728052356371,-1013.53,0.00040821,120]
[339839127,1728052356570,-500.0,0.00040821,120]
[339839128,1728052356580,-1310.29,0.00040821,120]
[339839129,1728052356589,-500.0,0.00040821,120]
[339839130,1728052356598,-500.0,0.00040821,120]
[339839131,1728052356607,-591.41,0.00040821,120]
[339839132,1728052356617,-499.23833612,0.00040821,120]
[339839133,1728052356626,-500.0,0.00040821,120]
[339839134,1728052356635,-500.0,0.00040821,120]
[339839135,1728052356644,-500.0,0.00040821,120]
[339839136,1728052356654,-639.7,0.00040821,120]
[339839137,1728052356663,-500.0,0.00040821,120]
[339839138,1728052356673,-500.0,0.00040821,120]
[339839139,1728052356682,-500.0,0.00040821,120]
[339839140,1728052356691,-1561.02,0.00040821,120]
[339839141,1728052356701,-827.19,0.00040821,120]
[339839142,1728052356711,-4363.93,0.00040821,2]
[339839143,1728052356720,-500.0,0.00040821,120]
[339839144,1728052356729,-500.0,0.00040821,120]
[339839145,1728052356739,-500.0,0.00040821,120]
[339839146,1728052356749,-500.0,0.00040821,120]
[339839147,1728052356759,-500.0,0.00040821,120]
[339839148,1728052356768,-563.6,0.00040821,120]
[339839149,1728052356778,-743.62,0.00040821,120]
[339839150,1728052356787,-500.0,0.00040821,120]
[339839151,1728052356805,-559.23,0.00040821,120]
[339839152,1728052356815,-500.0,0.00040821,120]
[339839153,1728052356825,-500.0,0.00040821,120]
[339839154,1728052356834,-500.0,0.00040821,120]
[339839155,1728052356843,-500.0,0.00040821,120]
[339839156,1728052356853,-500.0,0.00040821,120]
[339839157,1728052356863,-500.0,0.00040821,120]
[339839158,1728052356872,-500.0,0.00040821,120]
[339839159,1728052356882,-645.48,0.00040821,120]
[339839160,1728052356895,-500.0,0.00040821,120]
[339839161,1728052356905,-811.53,0.00040821,120]
[339839162,1728052356915,-500.0,0.00040821,120]
[339839163,1728052356924,-500.0,0.00040821,120]
[339839164,1728052356934,-500.0,0.00040821,120]
[339839165,1728052356944,-500.0,0.00040821,120]
[339839166,1728052356954,-502.40637787,0.00040821,120]
[339839167,1728052356964,-1108.69,0.00040821,120]
[339839168,1728052356974,-500.0,0.00040821,120]
[339839169,1728052356983,-500.0,0.00040821,120]
[339839170,1728052356992,-500.0,0.00040821,120]
[339839171,1728052357001,-500.0,0.00040821,120]
[339839172,1728052357011,-500.0,0.00040821,120]
[339839173,1728052357022,-649.16,0.00040821,120]
[339839174,1728052357034,-741.25,0.00040821,120]
[339839175,1728052357049,-983.7,0.00040821,14]
[339839176,1728052357059,-500.0,0.00040821,120]
[339839177,1728052357068,-879.29,0.00040821,120]
[339839178,1728052357077,-696.42,0.00040821,120]
[339839179,1728052357087,-500.0,0.00040821,120]
[339839180,1728052357096,-500.0,0.00040821,120]
[339839181,1728052357105,-500.0,0.00040821,120]
[339839182,1728052357115,-1063.83,0.00040821,120]
[339839183,1728052357124,-727.52,0.00040821,120]
[339839184,1728052357134,-500.0,0.00040821,120]
[339839185,1728052357144,-264.92238314,0.00040821,120]
[339839186,1728052357155,-500.0,0.00040821,120]
[339839187,1728052357165,-742.02,0.00040821,120]
[339839188,1728052357174,-800.71,0.00040821,120]
[339839189,1728052357184,-500.0,0.00040821,120]
[339839190,1728052357193,-531.4,0.00040821,120]
[339839191,1728052357203,-500.0,0.00040821,120]
[339839192,1728052357212,-607.06,0.00040821,120]
[339839193,1728052357222,-542.93,0.00040821,120]
[339839194,1728052357231,-500.0,0.00040821,120]
[339839195,1728052357242,-572.2,0.00040821,120]
[339839196,1728052357251,-1926.06,0.00040821,120]
[339839197,1728052357260,-977.76,0.00040821,120]
[339839198,1728052357269,-500.0,0.00040821,120]
[339839199,1728052357278,-500.0,0.00040821,120]
[339839200,1728052357288,-613.91650087,0.00040821,120]
[339839201,1728052357304,-500.0,0.00040821,120]
[339839202,1728052357314,-500.0,0.00040821,120]
[339839203,1728052357324,-500.0,0.00040821,120]
[339839204,1728052357333,-1025.77,0.00040821,120]
[339839205,1728052357342,-500.0,0.00040821,120]
[339839206,1728052357351,-500.0,0.00040821,120]
[339839207,1728052357360,-876.92,0.00040821,120]
[339839208,1728052357369,-634.02,0.00040821,120]
[339839209,1728052357379,-500.0,0.00040821,120]
[339839210,1728052357390,-586.53,0.00040821,120]
[339839211,1728052357399,-500.0,0.00040821,120]
[339839212,1728052357409,-500.0,0.00040821,120]
[339839213,1728052357419,-500.0,0.00040821,120]
[339839214,1728052357429,-500.0,0.00040821,120]
[339839215,1728052357439,-500.0,0.00040821,120]
[339839216,1728052357449,-500.0,0.00040821,120]
[339839217,1728052357458,-363.77631688,0.00040821,120]
[339839218,1728052357467,-500.0,0.00040821,120]
[339839219,1728052357477,-500.0,0.00040821,120]
[339839220,1728052357487,-500.0,0.00040821,120]
[339839221,1728052357497,-500.0,0.00040821,120]
[339839222,1728052357506,-500.0,0.00040821,120]
[339839223,1728052357516,-500.0,0.00040821,120]
[339839224,1728052357525,-500.0,0.00040821,120]
[339839225,1728052357535,-500.0,0.00040821,120]
[339839226,1728052357546,-500.0,0.00040821,120]
[339839227,1728052357556,-500.0,0.00040821,120]
[339839228,1728052357566,-997.26,0.00040821,120]
[339839229,1728052357575,-500.0,0.00040821,120]
[339839230,1728052357585,-500.0,0.00040821,120]
[339839231,1728052357595,-649.23,0.00040821,120]
[339839232,1728052357605,-500.0,0.00040821,120]
[339839233,1728052357615,-1071.81,0.00040821,120]
[339839234,1728052357624,-500.0,0.00040821,120]
[339839235,1728052357634,-374.2006239,0.00040821,120]
[339839236,1728052357643,-812.57,0.00040821,120]
[339839237,1728052357653,-500.0,0.00040821,120]
[339839238,1728052357663,-500.0,0.00040821,120]
[339839239,1728052357673,-391.50441981,0.00040821,120]
[339839240,1728052357683,-500.0,0.00040821,120]